bitfinex/quotes_SOLUSD_20250207
["timestamp","ask_amount","ask_price","bid_price","bid_amount"]
[1738963552062,0.063,190.31,190.28,24.04681174]
[1738963552370,0.063,190.31,190.3,24.04681174]
[1738963553768,0.063,190.31,190.3,30.62422035]
[1738963553937,0.063,190.31,190.3,31.4121264]
[1738963555353,0.063,190.38,190.31,1.5215]
[1738963555559,0.063,190.38,190.37,24.04681174]
[1738963557659,0.063,190.38,190.37,29.29971174]
[1738963558271,0.063,190.38,190.37,24.04681174]
[1738963558953,0.063,190.38,190.34,24.04681174]
[1738963559473,0.063,190.38,190.31,1.5215]
[1738963559777,24.04681174,190.37,190.3,24.04681174]
[1738963560080,24.04681174,190.36,190.3,24.04681174]
[1738963560261,24.04681174,190.37,190.3,24.04681174]
[1738963560447,24.04681174,190.37,190.31,24.04681174]
[1738963560646,29.00981174,190.38,190.31,24.04681174]
[1738963560864,29.00981174,190.38,190.32,24.04681174]
[1738963561354,110.30981174,190.38,190.32,24.04681174]
[1738963561672,5.2529,190.37,190.31,24.04681174]
[1738963562043,5.2529,190.37,190.32,24.04681174]
[1738963562443,81.363,190.38,190.36,24.04681174]
[1738963562660,0.063,190.38,190.37,24.04681174]
[1738963562875,0.063,190.38,190.32,24.04681174]
[1738963563048,13.66282853,190.36,190.25,1.5641]
[1738963563367,81.3,190.35,190.25,8.14329515]
[1738963563555,37.45866027,190.33,190.26,24.04681174]
[1738963563756,29.30111174,190.32,190.25,24.04681174]
[1738963564074,24.04681174,190.3,190.24,24.04681174]
[1738963564571,5.2543,190.32,190.26,24.04681174]
[1738963564770,5.2543,190.32,190.27,24.04681174]
[1738963564944,5.2543,190.32,190.28,24.04681174]
[1738963565274,13.41184853,190.31,190.25,24.04681174]
[1738963565662,5.2548,190.3,190.25,24.04681174]
[1738963566174,5.2548,190.3,190.23,24.04681174]
[1738963566175,94.71184853,190.29,190.23,24.04681174]
[1738963566364,94.71184853,190.29,190.22,24.04681174]
[1738963566365,4.9,190.28,190.22,24.04681174]
[1738963566545,4.9,190.28,190.23,24.04681174]
[1738963567271,4.9,190.28,190.25,0.063]
[1738963567645,5.2556,190.27,190.25,0.063]
[1738963569073,4.9,190.28,190.25,24.10981174]
[1738963569252,4.9,190.28,190.27,24.04681174]
[1738963570777,81.3,190.29,190.27,24.04681174]
[1738963571273,86.5551,190.29,190.26,24.04681174]
[1738963571466,86.5551,190.29,190.25,0.063]
[1738963572081,81.3,190.29,190.28,24.04681174]
[1738963572674,81.3,190.29,190.26,24.04681174]
[1738963572850,86.5551,190.29,190.26,24.04681174]
[1738963573049,86.5551,190.29,190.25,0.063]
[1738963573592,105.34681174,190.28,190.25,0.063]
[1738963573747,81.3,190.28,190.25,0.063]
[1738963575169,86.5554,190.28,190.25,24.10981174]
[1738963575356,86.5554,190.28,190.25,0.063]
[1738963576692,37.70964027,190.26,190.25,0.063]
[1738963577904,81.3,190.27,190.25,0.063]
[1738963578581,86.5559,190.27,190.25,0.063]
[1738963579383,81.3,190.27,190.25,0.063]
[1738963579587,81.3,190.27,190.25,24.10981174]
[1738963580083,86.5557,190.27,190.25,0.063]
[1738963581158,91.4557,190.27,190.25,0.063]
[1738963581559,86.2,190.27,190.25,0.063]
[1738963582391,91.4557,190.27,190.25,0.063]
[1738963583391,124.26554027,190.26,190.25,0.0001]
[1738963583570,20.0,190.22,190.2,0.063]
[1738963583767,20.0,190.23,190.2,0.063]
[1738963583768,139.00964027,190.21,190.2,0.063]
[1738963585485,144.26694027,190.21,190.2,0.063]
[1738963585802,120.22012853,190.21,190.2,0.063]
[1738963587091,142.76694027,190.21,190.2,0.063]
[1738963587394,142.76694027,190.21,190.2,0.0001]
[1738963587929,62.96694027,190.21,190.2,0.0001]
[1738963588604,64.96694027,190.21,190.2,0.0001]
[1738963588906,95.60905201,190.21,190.2,0.0001]
[1738963589086,0.25098,190.16,190.06,24.04681174]
[1738963589277,37.45866027,190.14,190.07,24.04681174]
[1738963590200,13.41184853,190.14,190.08,24.04681174]
[1738963590402,13.41184853,190.14,190.1,24.04681174]
[1738963590595,5.15098,190.15,190.1,24.04681174]
[1738963590596,4.9,190.15,190.1,24.04681174]
[1738963590895,4.9,190.15,190.11,24.04681174]
[1738963591306,18.67104853,190.14,190.09,24.04681174]
[1738963591706,42.71786027,190.14,190.07,24.04681174]
[1738963591890,10.159,190.15,190.1,24.04681174]
[1738963592093,5.2578,190.19,190.13,24.04681174]
[1738963592396,4.9,190.18,190.14,24.04681174]
[1738963592583,86.2,190.18,190.13,24.04681174]
[1738963592782,5.2584,190.17,190.13,24.04681174]
[1738963592987,5.2584,190.17,190.11,24.04681174]
[1738963593387,4.9,190.16,190.11,24.04681174]
[1738963594112,10.1589,190.16,190.11,24.04681174]
[1738963594285,10.1589,190.16,190.12,24.04681174]
[1738963594484,10.1589,190.16,190.11,24.04681174]
[1738963594816,4.9,190.16,190.13,24.04681174]
[1738963595280,81.3,190.18,190.15,24.04681174]
[1738963595487,4.9,190.21,190.17,24.04681174]
[1738963595702,4.9,190.21,190.19,24.04681174]
[1738963595912,5.257,190.22,190.19,24.04681174]
[1738963595913,4.9,190.22,190.19,24.04681174]
[1738963596231,86.2,190.23,190.2,24.04681174]
[1738963597527,97.49711991,190.29,190.22,24.04681174]
[1738963597695,97.49711991,190.29,190.26,24.04681174]
[1738963597696,102.39711991,190.29,190.26,24.04681174]
[1738963597903,37.40077169,190.28,190.21,24.04681174]
[1738963598132,13.35395995,190.28,190.23,24.04681174]
[1738963598428,0.25098,190.27,190.21,24.04681174]
[1738963598719,37.45866027,190.26,190.19,24.04681174]
[1738963598923,37.70964027,190.27,190.2,24.04681174]
[1738963599309,20.0,190.22,190.18,24.04681174]
[1738963599527,20.0,190.22,190.17,24.04681174]
[1738963600021,44.04681174,190.23,190.17,24.04681174]
[1738963600207,20.0,190.23,190.17,24.04681174]
[1738963600610,49.30381174,190.23,190.17,24.04681174]
[1738963600814,37.45866027,190.21,190.15,25.69971174]
[1738963601119,37.45866027,190.21,190.14,24.04681174]
[1738963601320,25.257,190.23,190.17,24.04681174]
[1738963602430,49.30381174,190.23,190.16,24.04681174]
[1738963603645,24.04681174,190.21,190.14,24.04681174]
[1738963604022,81.3,190.2,190.14,24.04681174]
[1738963604740,81.3,190.2,190.11,25.69831174]
[1738963604741,13.41184853,190.17,190.11,25.69831174]
[1738963604927,86.18,190.16,190.12,24.04681174]
[1738963606518,81.3,190.15,190.08,24.04681174]
[1738963607040,13.41184853,190.14,190.08,24.04681174]
[1738963607227,13.41184853,190.14,190.09,24.04681174]
[1738963607617,5.2593,190.14,190.09,24.04681174]
[1738963607955,5.2593,190.14,190.08,24.04681174]
[1738963608620,5.2593,190.14,190.07,5.2611]
[1738963608621,29.30611174,190.14,190.07,24.04681174]
[1738963608941,105.34681174,190.13,190.06,24.04681174]
[1738963609536,81.3,190.13,190.07,24.04681174]
[1738963609721,5.2598,190.12,190.07,24.04681174]
[1738963609921,5.2598,190.12,190.05,0.063]
[1738963610122,24.04681174,190.1,190.05,0.063]
[1738963610837,37.70964027,190.09,190.05,0.063]
[1738963611252,81.3,190.11,190.08,24.04681174]
[1738963611411,81.3,190.11,190.1,24.04681174]
[1738963612628,81.3,190.11,190.1,16.60279092]
[1738963614325,4.88,190.14,190.1,21.86309092]
[1738963614643,4.88,190.14,190.13,26.56128649]
[1738963616853,4.88,190.14,190.12,26.56128649]
[1738963617059,10.1393,190.14,190.09,0.063]
[1738963617350,10.1393,190.14,190.09,26.62428649]
[1738963618454,4.88,190.14,190.11,26.56128649]
[1738963618754,4.88,190.14,190.12,26.56128649]
[1738963618925,4.88,190.14,190.11,26.56128649]
[1738963619551,10.1393,190.14,190.1,26.56128649]
[1738963619730,10.1393,190.14,190.09,0.063]
[1738963620054,10.1393,190.14,190.09,26.62428649]
[1738963620254,10.1393,190.14,190.1,26.56128649]
[1738963620425,4.88,190.14,190.11,26.56128649]
[1738963620628,4.88,190.14,190.1,26.56128649]
[1738963621249,4.88,190.14,190.09,26.62428649]
[1738963621556,10.1393,190.14,190.11,26.56128649]
[1738963621956,10.1393,190.14,190.1,26.56128649]
[1738963624162,81.55098,190.13,190.09,26.62428649]
[1738963624363,26.56128649,190.11,190.09,0.063]
[1738963624533,46.56128649,190.1,190.09,0.063]
[1738963624735,60.22411502,190.1,190.09,0.063]
[1738963625748,60.22411502,190.1,190.09,0.0001]
[1738963625943,67.48441502,190.1,190.09,0.0001]
[1738963626143,67.48441502,190.1,190.05,0.063]
[1738963626144,20.12549,190.06,190.05,0.0001]
[1738963626441,69.08591502,190.06,190.05,0.0001]
[1738963626644,68.08591502,190.06,190.05,0.0001]
[1738963627337,67.08591502,190.06,190.05,0.0001]
[1738963628267,72.34731502,190.06,190.05,0.0001]
[1738963628658,50.09922853,190.06,190.05,0.0001]
[1738963629448,43.80422853,190.06,190.05,0.0001]
[1738963630270,70.36551502,190.06,190.05,0.0001]
[1738963630854,71.36551502,190.06,190.05,0.0001]
[1738963631169,72.36551502,190.06,190.05,0.0001]
[1738963631678,71.36551502,190.06,190.05,0.0001]
[1738963632161,72.36551502,190.06,190.05,0.0001]
[1738963632746,2.0,190.04,190.0,0.063]
[1738963632943,41.22411502,190.01,190.0,0.0001]
[1738963633144,68.78540151,190.01,190.0,0.0001]
[1738963633375,42.22411502,190.01,190.0,0.0001]
[1738963633557,68.78540151,190.01,190.0,0.0001]
[1738963634164,47.48691502,190.01,190.0,0.0001]
[1738963634480,46.48691502,190.01,190.0,0.0001]
[1738963634678,47.48691502,190.01,190.0,0.0001]
[1738963635972,45.48691502,190.01,190.0,0.0001]
[1738963636566,20.0,189.98,189.95,0.03]
[1738963636866,20.0,189.96,189.95,0.03]
[1738963637579,26.56128649,189.96,189.95,0.03]
[1738963637887,45.48831502,189.96,189.95,0.03]
[1738963638386,31.82548649,189.96,189.95,0.03]
[1738963638686,45.48831502,189.96,189.95,0.03]
[1738963639889,31.82548649,189.96,189.95,0.03]
[1738963640074,10.1442,189.96,189.95,0.03]
[1738963640457,4.88,189.96,189.95,0.03]
[1738963640678,30.1442,189.96,189.95,0.03]
[1738963640979,70.36831502,189.96,189.95,0.03]
[1738963641656,70.36831502,189.96,189.95,0.0001]
[1738963641968,72.36831502,189.96,189.95,0.0001]
[1738963642463,72.93511502,189.96,189.95,0.0001]
[1738963642785,33.66282853,189.9,189.89,0.03]
[1738963642953,60.22411502,189.9,189.89,0.03]
[1738963643591,57.59628002,189.9,189.89,0.03]
[1738963644071,63.86218002,189.9,189.89,0.03]
[1738963644579,62.86218002,189.9,189.89,0.03]
[1738963646984,67.74218002,189.9,189.89,0.03]
[1738963647787,35.91499353,189.9,189.89,0.03]
[1738963648013,4.88,189.9,189.89,0.03]
[1738963648289,4.88,189.9,189.89,26.59128649]
[1738963648496,1.0,189.96,189.89,26.59128649]
[1738963648675,4.88,189.94,189.9,1.6586]
[1738963649062,13.66282853,189.99,189.9,1.6586]
[1738963649276,20.0,189.96,189.9,1.6586]
[1738963649480,4.88,189.98,189.9,1.6586]
[1738963649694,13.66282853,189.97,189.9,1.6586]
[1738963649994,40.22411502,189.97,189.9,28.21988649]
[1738963650690,18.92682853,189.97,189.91,26.56128649]
[1738963650864,45.48811502,189.97,189.9,33.48578649]
[1738963651191,26.56128649,189.92,189.89,0.03]
[1738963651762,46.56128649,189.94,189.89,0.03]
[1738963651984,81.3,189.91,189.89,0.03]
[1738963652875,81.3,189.91,189.9,26.56128649]
[1738963654687,81.3,189.97,189.9,71.55327298]
[1738963654863,81.3,189.97,189.96,26.56128649]
[1738963656990,81.3,189.97,189.96,31.82548649]
[1738963657495,3.7,190.15,190.07,1.6115]
[1738963657667,3.7,190.15,190.11,26.56128649]
[1738963657668,8.12855995,190.14,190.11,26.56128649]
[1738963657867,8.12855995,190.14,190.07,1.6115]
[1738963657868,8.12855995,190.14,190.13,26.56128649]
[1738963658601,8.12855995,190.14,190.13,31.82078649]
[1738963659679,0.03,190.14,190.13,31.82078649]
[1738963659879,0.03,190.15,190.13,31.82078649]
[1738963660079,0.03,190.15,190.14,26.56128649]
[1738963661697,0.03,190.19,190.15,5.259]
[1738963662002,0.03,190.19,190.18,26.56128649]
[1738963663089,0.03,190.19,190.18,31.81938649]
[1738963666701,0.03,190.19,190.18,26.56128649]
[1738963666910,0.03,190.19,190.16,26.56128649]
[1738963667382,0.03,190.19,190.17,26.56128649]
[1738963667584,0.03,190.19,190.16,26.56128649]
[1738963667799,0.03,190.19,190.15,26.56128649]
[1738963669203,0.03,190.19,190.16,26.56128649]
[1738963669412,0.03,190.19,190.17,26.56128649]
[1738963669579,0.03,190.19,190.18,26.56128649]
[1738963671493,26.59128649,190.19,190.12,31.82108649]
[1738963671695,81.3,190.18,190.13,26.56128649]
[1738963672085,81.3,190.18,190.14,26.56128649]
[1738963672404,81.3,190.18,190.17,26.56128649]
[1738963672905,81.3,190.18,190.17,31.81968649]
[1738963676312,81.3,190.18,190.15,0.063]
[1738963677802,81.3,190.18,190.15,26.62428649]
[1738963678042,81.3,190.18,190.16,26.56128649]
[1738963678204,81.3,190.18,190.17,26.56128649]
[1738963678412,81.3,190.18,190.16,5.2585]
[1738963678413,81.3,190.18,190.16,31.81978649]
[1738963679784,81.3,190.18,190.15,26.62428649]
[1738963680281,81.3,190.18,190.16,26.56128649]
[1738963680505,81.3,190.18,190.17,26.56128649]
[1738963681509,81.3,190.18,190.17,28.16828649]
[1738963681708,81.3,190.18,190.17,33.42668649]
[1738963684000,86.16,190.26,190.17,33.42668649]
[1738963684209,81.3,190.26,190.24,26.56128649]
[1738963684604,81.3,190.26,190.25,26.56128649]
[1738963685414,81.3,190.26,190.24,26.56128649]
[1738963685619,81.3,190.26,190.17,33.42668649]
[1738963685620,13.41184853,190.24,190.17,33.42668649]
[1738963685796,5.256,190.26,190.2,26.56128649]
[1738963685797,81.3,190.23,190.2,26.56128649]
[1738963685996,81.3,190.23,190.21,26.56128649]
[1738963686317,81.3,190.23,190.17,6.8654]
[1738963687088,81.3,190.23,190.21,26.56128649]
[1738963688214,81.3,190.23,190.2,26.56128649]
[1738963688417,81.55098,190.22,190.18,26.56128649]
[1738963688718,81.55098,190.22,190.17,1.607]
[1738963688912,81.3,190.21,190.17,1.607]
[1738963689113,81.3,190.21,190.15,26.62428649]
[1738963689604,40.22411502,190.18,190.15,0.063]
[1738963689814,107.86128649,190.17,190.15,0.063]
[1738963690002,81.3,190.16,190.15,0.063]
[1738963690529,31.81998649,190.16,190.15,0.063]
[1738963691517,45.48281502,190.16,190.15,0.063]
[1738963692291,54.11611502,190.16,190.15,0.0001]
[1738963693496,55.44111408,190.16,190.15,0.0001]
[1738963694514,54.11611502,190.16,190.15,0.0001]
[1738963695018,53.11611502,190.16,190.15,0.0001]
[1738963695320,54.11611502,190.16,190.15,0.0001]
[1738963695496,20.25098,190.12,190.04,26.56128649]
[1738963695697,26.56128649,190.07,190.01,26.56128649]
[1738963696190,26.81226649,190.06,190.0,26.56128649]
[1738963696389,40.22411502,190.04,189.98,1.5514]
[1738963696618,31.82388649,190.02,189.98,1.5514]
[1738963696840,40.22411502,190.01,189.94,26.56128649]
[1738963697232,13.66282853,190.01,189.96,26.56128649]
[1738963697843,13.66282853,190.01,189.95,26.62428649]
[1738963698421,13.66282853,189.99,189.95,0.063]
[1738963698628,40.22411502,189.96,189.95,0.063]
[1738963700256,41.22411502,189.96,189.95,0.063]
[1738963700418,54.10331502,189.96,189.95,0.0001]
[1738963700740,13.41184853,189.91,189.89,0.03]
[1738963701052,40.22411502,189.9,189.89,0.03]
[1738963703057,45.49001502,189.9,189.89,0.03]
[1738963703847,46.56128649,189.92,189.89,0.03]
[1738963704022,4.86,189.91,189.89,0.03]
[1738963706055,0.25098,189.93,189.89,26.59128649]
[1738963706230,4.86,189.92,189.89,0.03]
[1738963706436,26.56128649,189.9,189.89,0.03]
[1738963706830,40.22411502,189.9,189.89,0.03]
[1738963707851,13.66282853,189.9,189.89,0.03]
[1738963708041,40.22411502,189.9,189.89,0.03]
[1738963709330,13.66282853,189.9,189.89,0.03]
[1738963709549,4.86,189.92,189.89,0.03]
[1738963710454,0.96197565,189.96,189.89,0.03]
[1738963710752,40.22411502,189.94,189.89,1.6743]
[1738963710960,40.22411502,189.94,189.89,0.03]
[1738963710961,13.66282853,189.94,189.89,0.03]
[1738963711556,13.66282853,189.9,189.89,0.03]
[1738963712141,40.22411502,189.9,189.89,0.03]
[1738963714643,45.49001502,189.9,189.89,0.03]
[1738963716065,20.25098,189.9,189.89,0.03]
[1738963716663,25.11098,189.9,189.89,0.03]
[1738963717153,4.86,189.9,189.89,0.03]
[1738963717355,31.82578649,189.96,189.89,26.59128649]
[1738963717531,4.86,189.95,189.9,26.56128649]
[1738963717736,4.86,189.95,189.91,26.56128649]
[1738963718830,4.86,189.95,189.92,26.56128649]
[1738963720170,4.86,189.95,189.91,26.56128649]
[1738963721549,4.86,189.95,189.9,26.56128649]
[1738963721755,0.25098,189.94,189.89,0.03]
[1738963722142,0.25098,189.92,189.89,0.03]
[1738963722350,26.56128649,189.91,189.89,0.03]
[1738963722747,121.52411502,189.9,189.89,0.03]
[1738963723447,126.79001502,189.9,189.89,0.03]
[1738963724776,121.52411502,189.9,189.89,0.03]
[1738963724951,94.96282853,189.9,189.89,0.03]
[1738963726964,81.55098,189.9,189.89,0.03]
[1738963728172,0.25098,189.9,189.89,0.03]
[1738963728491,4.86,189.92,189.89,0.03]
[1738963728781,4.86,189.92,189.89,26.59128649]
[1738963728979,4.86,189.92,189.91,26.56128649]
[1738963729153,4.86,189.94,189.91,26.56128649]
[1738963729479,4.86,189.94,189.92,26.56128649]
[1738963729974,4.86,189.94,189.91,26.56128649]
[1738963730179,4.86,189.94,189.92,26.56128649]
[1738963731173,4.86,189.94,189.9,1.6431]
[1738963731174,4.86,189.94,189.91,26.56128649]
[1738963733064,4.86,189.94,189.91,31.82688649]
[1738963733970,4.86,189.94,189.92,26.56128649]
[1738963734152,26.81226649,189.93,189.89,0.03]
[1738963734363,0.25098,189.91,189.89,0.03]
[1738963736787,31.42128649,189.94,189.89,0.03]
[1738963737010,26.56128649,189.9,189.89,0.03]
[1738963737164,15.66282853,189.84,189.83,0.0001]
[1738963737364,15.66282853,189.84,189.67,6.3376]
[1738963737365,14.66282853,189.77,189.67,6.3376]
[1738963737575,4.86,189.77,189.65,1.6514]
[1738963737776,4.86,189.77,189.66,5.2723]
[1738963738123,0.25098,189.76,189.66,5.2723]
[1738963738270,13.66282853,189.76,189.66,5.2723]
[1738963738587,13.66282853,189.76,189.71,26.56128649]
[1738963738756,4.86,189.77,189.75,26.56128649]
[1738963739597,0.25098,189.76,189.72,26.56128649]
[1738963739770,0.25098,189.76,189.73,26.62428649]
[1738963740090,4.86,189.77,189.73,0.063]
[1738963740268,4.86,189.77,189.73,26.62428649]
[1738963740455,4.86,189.77,189.73,0.063]
[1738963740862,3.9548126,189.87,189.78,1.0]
[1738963741099,3.9548126,189.87,189.78,22.79042892]
[1738963741258,8.09855995,189.89,189.88,26.49068432]
[1738963741459,8.09855995,189.89,189.75,13.41184853]
[1738963741460,8.09855995,189.89,189.85,26.56128649]
[1738963741658,13.66282853,189.88,189.82,26.56128649]
[1738963741871,13.66282853,189.88,189.84,26.56128649]
[1738963742074,8.09855995,189.89,189.86,26.56128649]
[1738963742786,13.41184853,189.9,189.86,26.56128649]
[1738963742985,37.87198649,189.95,189.88,26.56128649]
[1738963743308,13.66282853,189.94,189.89,26.56128649]
[1738963743606,4.86,189.93,189.9,26.56128649]
[1738963743786,4.86,189.93,189.88,26.56128649]
[1738963744110,0.25098,189.92,189.87,31.82788649]
[1738963744417,4.86,189.93,189.89,26.56128649]
[1738963744879,4.86,189.93,189.9,26.56128649]
[1738963745630,4.86,189.93,189.87,5.2666]
[1738963745631,4.86,189.93,189.89,26.56128649]
[1738963745982,4.86,189.93,189.9,26.56128649]
[1738963746198,4.86,189.93,189.91,5.2656]
[1738963746504,4.86,189.93,189.89,26.56128649]
[1738963747006,4.86,189.93,189.9,26.56128649]
[1738963748078,4.86,189.93,189.91,26.56128649]
[1738963748493,0.28098,189.95,189.91,26.56128649]
[1738963748697,0.28098,189.95,189.94,26.56128649]
[1738963748698,0.03,189.95,189.94,26.56128649]
[1738963748903,4.86,189.99,189.94,26.56128649]
[1738963749086,4.86,189.99,189.98,26.56128649]
[1738963749484,4.86,190.0,189.98,26.56128649]
[1738963750095,4.86,190.0,189.96,26.56128649]
[1738963750292,4.86,190.0,189.96,31.82528649]
[1738963750921,0.25098,190.02,189.98,26.56128649]
[1738963751209,8.09855995,190.04,190.01,26.56128649]
[1738963751395,8.09855995,190.04,190.03,26.56128649]
[1738963752018,0.25098,190.03,189.99,26.56128649]
[1738963753086,0.25098,190.03,190.0,26.56128649]
[1738963753286,0.25098,190.03,190.0,31.82438649]
[1738963753512,42.31956731,190.08,190.02,26.56128649]
[1738963753808,47.17956731,190.08,190.05,26.56128649]
[1738963754308,42.31956731,190.08,190.05,26.56128649]
[1738963754505,47.17956731,190.08,190.06,26.56128649]
[1738963754682,42.31956731,190.08,190.06,26.56128649]
[1738963755013,42.31956731,190.08,190.07,26.56128649]
[1738963755403,39.14123937,190.08,190.07,31.82248649]
[1738963755708,8.12855995,190.14,190.07,26.56128649]
[1738963755709,26.56128649,190.13,190.07,26.56128649]
[1738963755918,0.25098,190.1,190.04,26.56128649]
[1738963756105,8.12855995,190.14,190.02,6.8061]
[1738963756295,8.12855995,190.14,190.02,21.30973994]
[1738963756618,0.25098,190.13,190.05,20.0]
[1738963756916,4.86,190.13,190.05,20.0]
[1738963757119,8.12855995,190.14,190.12,26.56128649]
[1738963757293,8.12855995,190.14,190.13,31.82078649]
[1738963758190,0.03,190.14,190.13,31.82078649]
[1738963758589,26.59128649,190.23,190.13,33.40788649]
[1738963758817,4.86,190.22,190.17,26.56128649]
[1738963759813,13.66282853,190.21,190.17,26.56128649]
[1738963760197,13.66282853,190.21,190.16,26.56128649]
[1738963760514,40.22411502,190.21,190.15,26.56128649]
[1738963761720,13.66282853,190.21,190.15,26.56128649]
[1738963762825,13.69282853,190.21,190.15,26.56128649]
[1738963763722,0.25098,190.18,190.15,26.56128649]
[1738963764927,0.03,190.21,190.17,26.56128649]
[1738963765223,0.03,190.23,190.2,53.12257298]
[1738963765393,0.03,190.25,190.16,5.2587]
[1738963765807,0.03,190.25,190.16,18.4055]
[1738963766307,0.03,190.25,190.19,20.0]
[1738963766828,0.03,190.25,190.24,26.56128649]
[1738963767118,0.03,190.25,190.24,31.81778649]
[1738963768520,0.03,190.25,190.2,26.56128649]
[1738963768817,0.03,190.25,190.22,26.56128649]
[1738963770424,4.87,190.31,190.24,46.56128649]
[1738963770591,0.03,190.31,190.24,26.4335]
[1738963770798,0.03,190.35,190.3,53.12257298]
[1738963771026,0.03,190.35,190.3,27.88636064]
[1738963771720,0.03,190.35,190.33,26.56128649]
[1738963772111,0.03,190.35,190.33,31.81528649]
[1738963773830,0.03,190.35,190.33,26.56128649]
[1738963774007,0.28098,190.35,190.31,26.56128649]
[1738963774522,0.03,190.35,190.33,26.56128649]
[1738963775236,0.063,190.38,190.33,26.56128649]
[1738963775404,0.063,190.38,190.31,1.063]
[1738963775405,0.03,190.39,190.38,26.56128649]
[1738963775910,0.03,190.39,190.36,26.56128649]
[1738963776115,0.25098,190.38,190.32,26.56128649]
[1738963776502,0.03,190.39,190.34,26.56128649]
[1738963776725,0.03,190.39,190.35,8.30844837]
[1738963776936,0.03,190.39,190.36,26.56128649]
[1738963778331,0.03,190.39,190.35,26.56128649]
[1738963779106,0.03,190.39,190.34,26.56128649]
[1738963779322,26.59128649,190.39,190.32,26.56128649]
[1738963779526,0.03,190.39,190.33,26.56128649]
[1738963779719,26.59128649,190.39,190.32,26.56128649]
[1738963779923,0.25098,190.37,190.33,26.56128649]
[1738963781229,0.25098,190.37,190.32,26.56128649]
[1738963781736,13.44184853,190.39,190.33,26.56128649]
[1738963782239,13.44184853,190.39,190.36,26.56128649]
[1738963782240,0.03,190.39,190.36,26.56128649]
[1738963782435,0.03,190.39,190.38,26.56128649]
[1738963784237,0.03,190.39,190.38,31.81388649]
[1738963784450,0.03,190.39,190.38,33.46978649]
[1738963784927,0.063,190.45,190.41,20.0]
[1738963785128,0.063,190.45,190.44,26.56128649]
[1738963785922,0.063,190.45,190.44,31.81218649]
[1738963788829,0.063,190.45,190.44,26.56128649]
[1738963789842,0.063,190.45,190.41,26.56128649]
[1738963790142,0.063,190.45,190.39,26.56128649]
[1738963790143,0.25098,190.44,190.39,26.56128649]
[1738963792144,0.25098,190.44,190.4,26.56128649]
[1738963795118,0.25098,190.44,190.39,26.56128649]
[1738963795642,0.25098,190.44,190.4,26.56128649]
[1738963796848,0.25098,190.44,190.39,26.56128649]
[1738963799249,0.25098,190.44,190.39,26.62428649]
[1738963799846,0.25098,190.4,190.39,0.063]
[1738963800450,0.25098,190.42,190.39,0.063]
[1738963800666,0.063,190.45,190.41,26.56128649]
[1738963800948,0.063,190.45,190.44,26.56128649]
[1738963801118,4.84,190.49,190.44,26.56128649]
[1738963801318,0.063,190.51,190.4,27.56128649]
[1738963801518,4.84,190.5,190.4,27.56128649]
[1738963801719,4.84,190.5,190.45,31.81198649]
[1738963802272,4.903,190.51,190.45,33.31278649]
[1738963802472,0.063,190.51,190.45,33.31278649]
[1738963802651,0.063,190.51,190.48,20.0]
[1738963802966,27.30152134,190.58,190.5,53.12257298]
[1738963802967,4.84,190.58,190.5,53.12257298]
[1738963803189,4.84,190.58,190.57,26.56128649]
[1738963803468,4.87,190.59,190.56,26.56128649]
[1738963803640,4.87,190.59,190.53,26.56128649]
[1738963803841,13.66282853,190.58,190.54,26.56128649]
[1738963804057,13.66282853,190.58,190.52,26.56128649]
[1738963804340,0.25098,190.58,190.55,26.56128649]
[1738963804858,0.25098,190.58,190.54,26.56128649]
[1738963805060,13.66282853,190.56,190.5,26.56128649]
[1738963805442,4.87,190.59,190.53,26.56128649]
[1738963805641,4.87,190.59,190.56,26.56128649]
[1738963806571,4.87,190.59,190.51,26.56128649]
[1738963806572,13.66282853,190.58,190.51,26.56128649]
[1738963806761,13.41184853,190.55,190.49,26.56128649]